bitfinex/quotes_BTCUSD_20250619
["timestamp","ask_amount","ask_price","bid_price","bid_amount"]
[1750319776071,6.0953808,104770.0,104760.0,0.27330353]
[1750319776936,6.08583618,104770.0,104760.0,0.26375809]
[1750319777370,6.08583618,104770.0,104760.0,0.27330353]
[1750319777991,5.93215618,104770.0,104760.0,0.27330353]
[1750319778192,6.08587618,104770.0,104760.0,0.27330353]
[1750319778408,0.36966732,104770.0,104760.0,0.30193895]
[1750319778614,0.93081875,104770.0,104760.0,0.29239414]
[1750319778826,0.92127468,104770.0,104760.0,0.29239414]
[1750319779037,0.91173042,104770.0,104760.0,0.27330353]
[1750319779270,0.5414735,104770.0,104760.0,0.27330353]
[1750319779485,0.90218589,104770.0,104760.0,0.27330353]
[1750319780194,0.5414735,104770.0,104760.0,0.27330353]
[1750319780359,0.5414735,104770.0,104760.0,0.28284879]
[1750319780608,0.90218589,104770.0,104760.0,0.28284879]
[1750319780811,0.9887904,104770.0,104760.0,0.0633]
[1750319781017,0.89264118,104770.0,104760.0,0.0633]
[1750319782744,0.91542618,104770.0,104760.0,0.0633]
[1750319782933,0.91542618,104770.0,104760.0,0.07284562]
[1750319785067,1.01166794,104770.0,104760.0,0.0633]
[1750319785307,1.37238033,104770.0,104760.0,0.0633]
[1750319786168,1.52610033,104770.0,104760.0,0.0633]
[1750319786377,1.16538794,104770.0,104760.0,0.0633]
[1750319786608,0.80467555,104770.0,104760.0,0.26375818]
[1750319786829,1.16538794,104770.0,104760.0,0.26375818]
[1750319787070,1.16538794,104770.0,104760.0,0.28284915]
[1750319787297,1.16538794,104770.0,104760.0,0.27330371]
[1750319787731,1.52610033,104770.0,104760.0,0.0633]
[1750319788304,1.16538794,104770.0,104760.0,0.0633]
[1750319788514,1.16538794,104770.0,104760.0,0.07284562]
[1750319788721,1.16538794,104770.0,104760.0,0.27330371]
[1750319789009,1.16538794,104770.0,104760.0,0.28284915]
[1750319789238,1.16538794,104770.0,104760.0,0.2923945]
[1750319789455,1.08843515,104770.0,104760.0,0.30193976]
[1750319789660,0.90708553,104770.0,104760.0,0.30193886]
[1750319789876,1.09797986,104770.0,104760.0,0.30193886]
[1750319790292,1.09797986,104770.0,104760.0,0.29239378]
[1750319790996,1.07519486,104770.0,104760.0,0.30193886]
[1750319791438,0.93019386,104770.0,104760.0,0.30193886]
[1750319791657,1.09801084,104770.0,104760.0,0.30193886]
[1750319791876,1.09801084,104770.0,104760.0,0.29239378]
[1750319792774,1.45872323,104770.0,104760.0,0.29239378]
[1750319793425,1.09801084,104770.0,104760.0,0.30193886]
[1750319793648,1.08909184,104770.0,104760.0,0.30193886]
[1750319793880,1.0980106,104770.0,104760.0,0.30193886]
[1750319796659,1.0980106,104770.0,104760.0,0.29239378]
[1750319797521,1.45872299,104770.0,104760.0,0.27330335]
[1750319798378,1.45872347,104770.0,104760.0,0.27330335]
[1750319798790,1.44917912,104770.0,104760.0,0.27330335]
[1750319799044,1.4396345,104770.0,104760.0,0.263758]
[1750319799235,1.43008979,104770.0,104760.0,0.263758]
[1750319799396,1.43008979,104770.0,104760.0,0.25421256]
[1750319799592,1.43008979,104770.0,104760.0,0.26375818]
[1750319799967,1.43008979,104770.0,104760.0,0.04144562]
[1750319800882,1.58396979,104770.0,104760.0,0.0319]
[1750319801938,1.58396979,104770.0,104760.0,0.04144562]
[1750319802151,1.5839702,104770.0,104760.0,0.04144562]
[1750319803096,1.68021196,104770.0,104760.0,0.0319]
[1750319804343,1.68021196,104770.0,104760.0,0.04144562]
[1750319804991,1.68021196,104770.0,104760.0,0.23235818]
[1750319806662,1.74573424,104770.0,104760.0,0.04144562]
[1750319807971,1.70303219,104770.0,104760.0,0.24190371]
[1750319808639,1.70303219,104770.0,104760.0,0.23235818]
[1750319812746,1.70303219,104770.0,104760.0,0.24190371]
[1750319815070,1.70303219,104770.0,104760.0,0.04144562]
[1750319815285,1.70303219,104770.0,104760.0,0.24190371]
[1750319815481,1.70303219,104770.0,104760.0,0.23235818]
[1750319815687,1.82770455,104770.0,104760.0,0.0011]
[1750319815904,6.9455604,104770.0,104760.0,0.0011]
[1750319816113,6.98359125,104770.0,104760.0,0.0011]
[1750319816315,6.94556159,104770.0,104760.0,0.0011]
[1750319816527,6.91386159,104770.0,104760.0,0.0011]
[1750319817369,6.94416159,104770.0,104760.0,0.0011]
[1750319820140,6.91386159,104770.0,104760.0,0.0011]
[1750319820580,6.94466159,104770.0,104760.0,0.0011]
[1750319821979,6.94465352,104770.0,104760.0,0.0011]
[1750319822202,6.5980149,104770.0,104760.0,0.0011]
[1750319823875,6.59801109,104770.0,104760.0,0.0011]
[1750319824083,6.93801109,104770.0,104760.0,0.0011]
[1750319824846,7.29872348,104770.0,104760.0,0.0011]
[1750319825057,6.90721109,104770.0,104760.0,0.0011]
[1750319826059,6.87511109,104770.0,104760.0,0.0011]
[1750319826887,6.90631109,104770.0,104760.0,0.0011]
[1750319827518,6.87511109,104770.0,104760.0,0.0011]
[1750319829804,6.91431109,104770.0,104760.0,0.0011]
[1750319830430,6.91430905,104770.0,104760.0,0.0011]
[1750319830877,6.19288427,104770.0,104760.0,0.0011]
[1750319831082,6.91430905,104770.0,104760.0,0.0011]
[1750319831907,6.90540041,104770.0,104760.0,0.0011]
[1750319832123,6.94283235,104770.0,104760.0,0.0011]
[1750319832332,6.97603235,104770.0,104760.0,0.0011]
[1750319833174,6.97603253,104770.0,104760.0,0.0011]
[1750319833800,6.94283253,104770.0,104760.0,0.0011]
[1750319835894,6.94283253,104770.0,104760.0,0.0343]
[1750319836525,6.94283253,104770.0,104760.0,0.0657]
[1750319836947,6.94283253,104770.0,104760.0,0.0343]
[1750319837158,6.94283253,104770.0,104760.0,0.067]
[1750319838199,6.94283253,104770.0,104760.0,0.0343]
[1750319838411,7.30354492,104770.0,104760.0,0.0343]
[1750319838614,6.94283253,104770.0,104760.0,0.0011]
[1750319839043,7.30354492,104770.0,104760.0,0.0011]
[1750319839249,6.94283253,104770.0,104760.0,0.0011]
[1750319840353,7.33434492,104770.0,104760.0,0.0011]
[1750319840787,7.37237577,104770.0,104760.0,0.0011]
[1750319842935,7.31142594,104770.0,104760.0,0.0011]
[1750319844555,7.3114341,104770.0,104760.0,0.0011]
[1750319845902,7.31143906,104770.0,104760.0,0.0011]
[1750319846338,7.33183732,104770.0,104760.0,0.0011]
[1750319847405,7.36473767,104770.0,104760.0,0.0011]
[1750319848769,7.36473767,104770.0,104760.0,0.0001]
[1750319848988,7.36673767,104770.0,104760.0,0.0001]
[1750319849200,7.35981522,104770.0,104760.0,0.0001]
[1750319849416,7.33583746,104770.0,104760.0,0.0001]
[1750319850068,7.36452746,104770.0,104760.0,0.0001]
[1750319850306,7.36500746,104770.0,104760.0,0.0001]
[1750319850513,6.97349507,104770.0,104760.0,0.0001]
[1750319850717,6.97349507,104770.0,104760.0,0.0328]
[1750319850928,6.97349507,104770.0,104760.0,0.066]
[1750319852956,7.01152538,104770.0,104760.0,0.066]
[1750319855906,6.91537658,104770.0,104760.0,0.066]
[1750319856745,6.76101658,104770.0,104760.0,0.066]
[1750319856948,6.87734573,104770.0,104760.0,0.066]
[1750319857867,6.86308488,104770.0,104760.0,0.066]
[1750319859605,6.86308559,104770.0,104760.0,0.066]
[1750319859809,6.95923481,104770.0,104760.0,0.066]
[1750319862157,6.86308559,104770.0,104760.0,0.066]
[1750319863225,0.55499885,104760.0,104750.0,0.0317]
[1750319863436,1.57270902,104760.0,104750.0,0.0627]
[1750319864090,1.60139902,104760.0,104750.0,0.0627]
[1750319866906,1.60270546,104760.0,104750.0,0.0627]
[1750319867165,1.69885485,104760.0,104750.0,0.0627]
[1750319867629,0.88951976,104760.0,104750.0,0.25363078]
[1750319867864,0.88951976,104760.0,104750.0,0.27272357]
[1750319867865,1.58372784,104760.0,104750.0,0.27272357]
[1750319868581,1.58372784,104760.0,104750.0,0.28226983]
[1750319868998,1.55503784,104760.0,104750.0,0.291816]
[1750319869481,1.41026337,104760.0,104750.0,0.291816]
[1750319869945,1.31402193,104760.0,104750.0,0.291816]
[1750319870158,0.96220194,104760.0,104750.0,0.30136163]
[1750319870839,0.96220194,104760.0,104750.0,0.29181564]
[1750319871063,0.95265659,104760.0,104750.0,0.29181564]
[1750319871272,0.95265659,104760.0,104750.0,0.28226956]
[1750319871934,0.98134259,104760.0,104750.0,0.28226956]
[1750319875537,0.98134259,104760.0,104750.0,0.29181564]
[1750319877836,0.98134259,104760.0,104750.0,0.28226956]
[1750319878222,0.97179715,104760.0,104750.0,0.28226956]
[1750319878422,0.97179672,104760.0,104750.0,0.28226956]
[1750319879022,0.96225119,104760.0,104750.0,0.26317713]
[1750319879442,1.3236168,104760.0,104750.0,0.26317713]
[1750319880452,1.45531829,104760.0,104750.0,0.26317713]
[1750319880599,1.47816218,104760.0,104750.0,0.26317713]
[1750319882635,1.47812218,104760.0,104750.0,0.26317713]
[1750319883170,1.13812218,104760.0,104750.0,0.26317713]
[1750319883665,1.12857656,104760.0,104750.0,0.26317713]
[1750319884123,1.12857789,104760.0,104750.0,0.26317713]
[1750319884352,1.12857803,104760.0,104750.0,0.26317713]
[1750319885255,1.46857803,104760.0,104750.0,0.26317713]
[1750319887254,1.4685782,104760.0,104750.0,0.26317713]
[1750319888911,1.46848638,104760.0,104750.0,0.26317713]
[1750319889902,1.46848673,104760.0,104750.0,0.26317713]
[1750319890353,0.59136733,104760.0,104750.0,0.26317713]
[1750319890609,0.41954465,104760.0,104750.0,0.5737692]
[1750319890817,1.15172904,104760.0,104750.0,0.5737692]
[1750319891029,1.13263897,104760.0,104750.0,0.5737692]
[1750319891247,1.11041519,104760.0,104750.0,0.5737692]
[1750319891467,1.11996036,104760.0,104750.0,0.5737692]
[1750319891933,1.41666085,104760.0,104750.0,0.52367713]
[1750319892164,1.88680589,104760.0,104750.0,0.3232]
[1750319892374,1.52548619,104760.0,104750.0,0.3232]
[1750319893011,1.42933697,104760.0,104750.0,0.3232]
[1750319893455,1.42933697,104760.0,104750.0,0.33274653]
[1750319893659,1.42933697,104760.0,104750.0,0.52367731]
[1750319894303,1.23842387,104760.0,104750.0,0.55487731]
[1750319894544,1.16127326,104760.0,104750.0,0.57396956]
[1750319895380,1.15172764,104760.0,104750.0,0.57396956]
[1750319895581,1.15172764,104760.0,104750.0,0.58351546]
[1750319895810,1.15172764,104760.0,104750.0,0.29201546]
[1750319896564,1.14218211,104760.0,104750.0,0.29201546]
[1750319896768,1.15172755,104760.0,104750.0,0.29201546]
[1750319897558,0.40999717,104760.0,104750.0,0.29201546]
[1750319897703,1.13263657,104760.0,104750.0,0.29201546]
[1750319897925,1.14218165,104760.0,104750.0,0.29201546]
[1750319898126,1.13263657,104760.0,104750.0,0.44669546]
[1750319898307,1.13263772,104760.0,104750.0,0.44669546]
[1750319898508,1.12309283,104760.0,104750.0,0.44669546]
[1750319898709,1.13263763,104760.0,104750.0,0.44669546]
[1750319898935,1.13263763,104760.0,104750.0,0.44769546]
[1750319899337,1.13263763,104760.0,104750.0,0.44969546]
[1750319899539,1.14218252,104760.0,104750.0,0.44969546]
[1750319899947,1.12309283,104760.0,104750.0,0.44969546]
[1750319900149,1.13263763,104760.0,104750.0,0.44969546]
[1750319901195,1.13263642,104760.0,104750.0,0.44969546]
[1750319902571,0.40999702,104760.0,104750.0,0.44969546]
[1750319902773,1.13263642,104760.0,104750.0,0.44969546]
[1750319903473,1.11416773,104760.0,104750.0,0.44969546]
[1750319904776,1.0913254,104760.0,104750.0,0.44969546]
[1750319904991,0.7226394,104760.0,104750.0,0.44969546]
[1750319905777,0.74172937,104760.0,104750.0,0.44969546]
[1750319906395,0.73218429,104760.0,104750.0,0.44969546]
[1750319906942,1.07218429,104760.0,104750.0,0.44969546]
[1750319907291,1.08172937,104760.0,104750.0,0.44969546]
[1750319907609,1.08172928,104760.0,104750.0,0.44969546]
[1750319908366,1.07218429,104760.0,104750.0,0.44969546]
[1750319909169,1.08172937,104760.0,104750.0,0.44969546]
[1750319909351,1.07218429,104760.0,104750.0,0.44969546]
[1750319910603,1.08172937,104760.0,104750.0,0.44969546]
[1750319910800,1.09127463,104760.0,104750.0,0.44969546]
[1750319910931,1.09127454,104760.0,104750.0,0.44969546]
[1750319912224,0.91983068,104760.0,104750.0,0.44969546]
[1750319913514,0.91983068,104760.0,104750.0,0.74119546]
[1750319913715,0.92937603,104760.0,104750.0,0.74119546]
[1750319914028,0.9102856,104760.0,104750.0,0.74119546]
[1750319916289,0.91028551,104760.0,104750.0,0.74119546]
[1750319916506,0.90074043,104760.0,104750.0,0.74119546]
[1750319916918,0.91028542,104760.0,104750.0,0.74119546]
[1750319917123,0.90074043,104760.0,104750.0,0.74119546]
[1750319917534,0.91028551,104760.0,104750.0,0.74119546]
[1750319917739,0.90074043,104760.0,104750.0,0.74119546]
[1750319917945,0.91028551,104760.0,104750.0,0.74119546]
[1750319918796,0.91983077,104760.0,104750.0,0.74119546]
[1750319922078,0.91028551,104760.0,104750.0,0.74119546]
[1750319922307,0.91983077,104760.0,104750.0,0.74119546]
[1750319923103,0.88075331,104760.0,104750.0,0.74119546]
[1750319923719,0.36863523,104760.0,104750.0,0.74119546]
[1750319923910,1.09127463,104760.0,104750.0,0.74119546]
[1750319924563,1.09127454,104760.0,104750.0,0.74119546]
[1750319925150,1.0626394,104760.0,104750.0,0.74119546]
[1750319925330,1.08172928,104760.0,104750.0,0.74119546]
[1750319926243,0.36863496,104760.0,104750.0,0.74119546]
[1750319926443,1.09127436,104760.0,104750.0,0.74119546]
[1750319926690,1.08172928,104760.0,104750.0,0.74119546]
[1750319926846,1.09127445,104760.0,104750.0,0.74119546]
[1750319927278,1.08172928,104760.0,104750.0,0.74119546]
[1750319927691,1.09127445,104760.0,104750.0,0.74119546]
[1750319927922,1.08172928,104760.0,104750.0,0.74119546]
[1750319928565,1.09127445,104760.0,104750.0,0.74119546]
[1750319929344,0.72995475,104760.0,104750.0,0.74119546]
[1750319929817,0.7395001,104760.0,104750.0,0.74119546]
[1750319930043,1.1008198,104760.0,104750.0,0.74119546]
[1750319930266,0.7608198,104760.0,104750.0,0.74119546]
[1750319932321,0.75127445,104760.0,104750.0,0.74119546]
[1750319932953,1.1008198,104760.0,104750.0,0.74119546]
[1750319933368,1.09127445,104760.0,104750.0,0.74119546]
[1750319933612,1.1008198,104760.0,104750.0,0.74119546]
[1750319933787,1.09127445,104760.0,104750.0,0.74119546]
[1750319933961,1.1008198,104760.0,104750.0,0.74119546]
[1750319934194,1.10081971,104760.0,104750.0,0.74119546]
[1750319934404,0.91257849,104760.0,104750.0,0.74119546]
[1750319935479,0.92212348,104760.0,104750.0,0.74119546]
[1750319936564,0.93166837,104760.0,104750.0,0.74119546]
[1750319937066,0.94121381,104760.0,104750.0,0.74119546]
[1750319937274,0.92212311,104760.0,104750.0,0.74119546]
[1750319937479,0.91257794,104760.0,104750.0,0.74119546]
[1750319937684,0.72040958,104760.0,104750.0,0.74119546]
[1750319937858,0.7395001,104760.0,104750.0,0.74119546]
[1750319938069,0.72995475,104760.0,104750.0,0.74119546]
[1750319939196,0.7395001,104760.0,104750.0,0.74119546]
[1750319939421,0.72995475,104760.0,104750.0,0.74119546]
[1750319940686,0.36863505,104760.0,104750.0,0.74119546]
[1750319940901,0.72995466,104760.0,104750.0,0.74119546]
[1750319941325,0.34,104760.0,104750.0,1.10251516]
[1750319941766,0.34,104760.0,104750.0,0.74119546]
[1750319941976,0.7013197,104760.0,104750.0,0.74119546]
[1750319942630,0.71086459,104760.0,104750.0,0.74119546]
[1750319943498,0.72040958,104760.0,104750.0,0.74119546]
[1750319944586,0.71086459,104760.0,104750.0,0.74119546]
[1750319946059,0.7108645,104760.0,104750.0,0.74119546]
[1750319946360,0.7013197,104760.0,104750.0,0.74119546]
[1750319946569,0.71086459,104760.0,104750.0,0.74119546]
[1750319946784,0.7013197,104760.0,104750.0,0.74119546]
[1750319947440,0.71086459,104760.0,104750.0,0.74119546]
[1750319948523,0.7013197,104760.0,104750.0,0.74119546]
[1750319949269,0.71086459,104760.0,104750.0,0.74119546]
[1750319950380,0.7013197,104760.0,104750.0,0.74119546]
[1750319952615,0.3613197,104760.0,104750.0,0.74119546]
[1750319955426,0.15997626,104770.0,104760.0,0.21954861]
[1750319955650,0.7815746,104780.0,104770.0,0.20998312]
[1750319955651,0.77900518,104780.0,104770.0,0.20998312]
[1750319955890,0.81078615,104780.0,104770.0,0.3641433]
[1750319956397,0.8012429,104780.0,104770.0,0.3641433]
[1750319956835,1.1625626,104780.0,104770.0,0.3641433]
[1750319957460,1.15301907,104780.0,104770.0,0.35459886]
[1750319957667,1.19145124,104780.0,104770.0,0.35459886]
[1750319958266,1.19345124,104780.0,104770.0,0.35459886]
[1750319958401,1.18590744,104780.0,104770.0,0.35459886]
[1750319958626,1.18590744,104780.0,104770.0,0.34505433]
[1750319958821,1.18590744,104780.0,104770.0,0.36414366]
[1750319960820,1.18590744,104780.0,104770.0,0.35459904]
[1750319960950,1.18590744,104780.0,104770.0,0.15416]
[1750319961573,0.94370727,104780.0,104770.0,0.15416]
[1750319961774,1.32772866,104780.0,104770.0,0.15416]
[1750319962363,0.00954453,104770.0,104760.0,0.72832788]
[1750319962582,0.37086423,104770.0,104760.0,0.72832788]
[1750319963767,0.72040867,104770.0,104760.0,0.72832788]
[1750319963966,0.74842169,104770.0,104760.0,0.71878299]
[1750319964196,0.73949773,104770.0,104760.0,0.71878299]
[1750319964400,0.74842167,104770.0,104760.0,0.71878299]
[1750319964603,0.57184287,104770.0,104760.0,0.72832798]
[1750319964820,0.57184288,104770.0,104760.0,0.72832798]
[1750319965626,0.58138741,104770.0,104760.0,0.72832798]
[1750319965833,0.5718427,104770.0,104760.0,0.72832798]
[1750319966152,0.58138726,104770.0,104760.0,0.72832798]
[1750319967859,0.57246337,104770.0,104760.0,0.72832798]
[1750319968065,0.58138754,104770.0,104760.0,0.72832798]
[1750319968669,0.58138799,104770.0,104760.0,0.72832798]
[1750319968964,0.57246382,104770.0,104760.0,0.72832798]
[1750319969170,0.58138821,104770.0,104760.0,0.72832798]
[1750319970309,0.5718435,104770.0,104760.0,0.72832798]
[1750319971193,0.56229888,104770.0,104760.0,0.72832798]
[1750319971428,0.55275435,104770.0,104760.0,0.72832798]
[1750319971639,0.36801318,104770.0,104760.0,0.72832798]
[1750319971846,0.72933251,104770.0,104760.0,0.72832798]
[1750319972462,0.73887704,104770.0,104760.0,0.72832798]
[1750319972750,0.72933251,104770.0,104760.0,0.72832798]
[1750319973148,0.73887695,104770.0,104760.0,0.72832798]
[1750319973351,0.74842148,104770.0,104760.0,0.72832798]
[1750319973925,0.73887695,104770.0,104760.0,0.72832798]
[1750319974498,0.36801281,104770.0,104760.0,0.72832798]
[1750319974710,0.75218231,104770.0,104760.0,0.72832798]
[1750319975541,0.72040812,104770.0,104760.0,0.72832798]
[1750319975750,0.35908833,104770.0,104760.0,0.72832798]
[1750319976174,0.72995247,104770.0,104760.0,0.72832798]
[1750319976395,0.72040803,104770.0,104760.0,0.72832798]
[1750319977927,0.72040794,104770.0,104760.0,0.72832798]
[1750319978135,0.72040794,104770.0,104760.0,0.72932798]
[1750319978784,0.72995229,104770.0,104760.0,0.72932798]
[1750319979056,0.72995229,104770.0,104760.0,0.73132798]
[1750319979270,0.73949682,104770.0,104760.0,0.73132798]
[1750319979488,0.72995229,104770.0,104760.0,0.73132798]
[1750319979700,0.73949673,104770.0,104760.0,0.73132798]
[1750319979912,0.36863259,104770.0,104760.0,0.73132798]
[1750319980136,0.72995229,104770.0,104760.0,0.73132798]
[1750319980358,0.7299522,104770.0,104760.0,0.73132798]
[1750319981008,0.73949664,104770.0,104760.0,0.73132798]
[1750319981417,0.7299522,104770.0,104760.0,0.73132798]
[1750319981623,0.73949655,104770.0,104760.0,0.73132798]
[1750319982131,0.74904108,104770.0,104760.0,0.73132798]
[1750319983461,0.74904163,104770.0,104760.0,0.73132798]
[1750319983868,0.38772247,104770.0,104760.0,0.74087378]
[1750319984086,0.74904217,104770.0,104760.0,0.74087378]
[1750319984291,0.77189261,104770.0,104760.0,0.74087378]
[1750319984707,0.58977326,104770.0,104760.0,0.48541256]
[1750319984913,0.58022873,104770.0,104760.0,0.49495818]
[1750319985139,0.58022873,104770.0,104760.0,0.64895818]
[1750319985384,0.60891173,104770.0,104760.0,0.64895818]
[1750319985570,0.59936711,104770.0,104760.0,0.64895818]
[1750319986000,0.62221984,104770.0,104760.0,0.64895818]
[1750319986617,0.59936711,104770.0,104760.0,0.65850371]
[1750319987030,0.93936711,104770.0,104760.0,0.69130371]
[1750319987268,0.57804741,104770.0,104760.0,0.72170371]
[1750319987474,0.93936711,104770.0,104760.0,0.73124906]
[1750319990037,0.93936711,104770.0,104760.0,0.49080562]
[1750319990255,0.93936711,104770.0,104760.0,0.2945]
[1750319990256,0.97016711,104770.0,104760.0,0.2945]
[1750319990465,0.97016711,104770.0,104760.0,0.003]
[1750319991278,0.93936711,104770.0,104760.0,0.003]
[1750319991830,0.93936757,104770.0,104760.0,0.003]
[1750319992028,0.96221835,104770.0,104760.0,0.003]
[1750319994574,0.96221766,104770.0,104760.0,0.003]
[1750319997502,0.96221716,104770.0,104760.0,0.003]
[1750319998348,1.42851223,104770.0,104760.0,0.003]
[1750319998767,1.02481716,104770.0,104760.0,0.003]
[1750320000218,1.08440174,104770.0,104760.0,0.003]
[1750320000632,1.11540174,104770.0,104760.0,0.003]
[1750320000842,1.12432585,104770.0,104760.0,0.003]
[1750320001053,1.14717198,104770.0,104760.0,0.003]
[1750320002292,0.96221198,104770.0,104760.0,0.003]
[1750320003465,0.96221134,104770.0,104760.0,0.003]
[1750320004736,0.9622112,104770.0,104760.0,0.003]
[1750320005230,1.05836042,104770.0,104760.0,0.003]
[1750320005623,0.9622112,104770.0,104760.0,0.003]
[1750320006275,0.95328787,104770.0,104760.0,0.003]
[1750320006488,0.96221084,104770.0,104760.0,0.003]
[1750320007964,0.96221084,104770.0,104760.0,0.23415818]
[1750320008115,0.96221084,104770.0,104760.0,0.26715818]
[1750320008348,0.95266613,104770.0,104760.0,0.26715818]
[1750320008933,0.95266613,104770.0,104760.0,0.27670371]
[1750320009135,0.95266705,104770.0,104760.0,0.27670371]
[1750320010708,0.96221158,104770.0,104760.0,0.28624915]
[1750320010962,0.96221158,104770.0,104760.0,0.27670371]
[1750320012044,0.96221278,104770.0,104760.0,0.27670371]
[1750320013163,0.9622136,104770.0,104760.0,0.27670371]
[1750320014875,0.96221427,104770.0,104760.0,0.27670371]
[1750320017772,0.96221463,104770.0,104760.0,0.27670371]
[1750320020688,0.9526701,104770.0,104760.0,0.07624562]
[1750320020895,0.9526701,104770.0,104760.0,0.0667]
[1750320022494,1.01371275,104770.0,104760.0,0.0667]
[1750320023302,0.9526701,104770.0,104760.0,0.07624562]
[1750320024463,0.9526701,104770.0,104760.0,0.0667]
[1750320028950,0.94374316,104770.0,104760.0,0.0667]
[1750320029152,0.95267186,104770.0,104760.0,0.003]
[1750320029790,0.70714969,104770.0,104760.0,0.003]
[1750320030008,0.89804402,104770.0,104760.0,0.003]
[1750320031209,0.89804402,104770.0,104760.0,0.0357]
[1750320031841,0.89804131,104770.0,104760.0,0.0357]
[1750320031980,0.89804131,104770.0,104760.0,0.0682]
[1750320034745,0.89803956,104770.0,104760.0,0.0682]
[1750320035729,0.89803956,104770.0,104760.0,0.0357]
[1750320036757,1.35560102,104770.0,104760.0,0.003]
[1750320037513,1.38428802,104770.0,104760.0,0.003]
[1750320038133,0.66164862,104770.0,104760.0,0.003]
[1750320038332,1.38428802,104770.0,104760.0,0.003]
[1750320038745,1.38428803,104770.0,104760.0,0.003]
[1750320038896,1.53824803,104770.0,104760.0,0.0352]
[1750320039536,1.7119381,104770.0,104760.0,0.003]
[1750320039734,6.78001077,104770.0,104760.0,0.003]
[1750320040897,6.7514531,104770.0,104760.0,0.003]
[1750320041042,6.0288137,104770.0,104760.0,0.003]
[1750320041237,6.7514531,104770.0,104760.0,0.003]
[1750320042776,6.7514456,104770.0,104760.0,0.003]
[1750320043230,6.7188456,104770.0,104760.0,0.003]
[1750320043658,6.70992885,104770.0,104760.0,0.003]
[1750320043865,6.71884334,104770.0,104760.0,0.003]
[1750320044022,6.68844334,104770.0,104760.0,0.003]
[1750320046283,6.68844231,104770.0,104760.0,0.003]
[1750320046500,6.53448231,104770.0,104760.0,0.0686]
[1750320046712,6.68844231,104770.0,104760.0,0.0686]
[1750320046955,0.66163784,104770.0,104760.0,0.0686]
[1750320047164,0.81559784,104770.0,104760.0,0.0686]
[1750320047403,1.17691754,104770.0,104760.0,0.0686]
[1750320047612,0.92671578,104770.0,104760.0,0.26905809]
[1750320048263,0.92671578,104770.0,104760.0,0.25951256]
[1750320048478,0.92671578,104770.0,104760.0,0.26905818]
[1750320048737,0.92671578,104770.0,104760.0,0.27860371]
[1750320048955,0.93626049,104770.0,104760.0,0.2976945]
[1750320049175,0.40313471,104770.0,104760.0,0.30723967]
[1750320049387,0.96489345,104770.0,104760.0,0.2976945]
[1750320049596,0.96489345,104770.0,104760.0,0.30723976]
[1750320050034,0.96489345,104770.0,104760.0,0.30723931]
[1750320050465,0.76508566,104770.0,104760.0,0.30723841]
[1750320051114,0.43792561,104780.0,104770.0,0.27308312]
[1750320051330,0.45120346,104780.0,104770.0,0.28262719]
[1750320051536,0.10528773,104780.0,104770.0,0.27986719]
[1750320051743,0.43792543,104780.0,104770.0,0.27986719]
[1750320052826,0.43792543,104780.0,104770.0,0.28186719]
[1750320053038,0.44746914,104780.0,104770.0,0.28186719]
[1750320053268,0.08614944,104780.0,104770.0,0.28286719]
[1750320053483,0.80878884,104780.0,104770.0,0.28286719]
[1750320053947,0.79924568,104780.0,104770.0,0.2760833]
[1750320054158,0.9901218,104780.0,104770.0,0.2760833]
[1750320054369,0.97103502,104780.0,104770.0,0.25699433]
[1750320055221,0.97103502,104780.0,104770.0,0.26653904]
[1750320055635,0.24839562,104780.0,104770.0,0.27608357]
[1750320055847,0.6001717,104780.0,104770.0,0.07564471]
[1750320057143,0.6001717,104780.0,104770.0,0.0661]
[1750320057358,0.6001717,104780.0,104770.0,0.07564471]
[1750320057759,0.7226394,104780.0,104770.0,0.07564471]
[1750320057950,0.91351552,104780.0,104770.0,0.07564471]
[1750320058806,0.5595389,104790.0,104780.0,0.0605]
[1750320059016,0.90108351,104790.0,104780.0,0.0605]
[1750320059239,0.92388072,104790.0,104780.0,0.0605]
[1750320060477,0.91497481,104790.0,104780.0,0.0605]
[1750320061079,0.95404428,104790.0,104780.0,0.0605]
[1750320061679,0.95504428,104790.0,104780.0,0.0605]
[1750320061889,0.95604428,104790.0,104780.0,0.0605]
[1750320062312,0.93324707,104790.0,104780.0,0.0605]
[1750320062867,0.93124707,104790.0,104780.0,0.0605]
[1750320063248,0.93124707,104790.0,104780.0,0.0615]
[1750320064266,0.56992737,104790.0,104780.0,0.0615]
[1750320064465,0.93124707,104790.0,104780.0,0.0615]
[1750320065103,0.57947026,104790.0,104780.0,0.26191974]
[1750320065324,0.95033258,104790.0,104780.0,0.0615]
[1750320065532,1.31165228,104790.0,104780.0,0.0615]
[1750320065735,0.95033258,104790.0,104780.0,0.0615]
[1750320067000,0.95923669,104790.0,104780.0,0.0615]
[1750320067226,0.95033258,104790.0,104780.0,0.0615]
[1750320067456,0.95923276,104790.0,104780.0,0.0615]
[1750320067683,0.97311613,104790.0,104780.0,0.0615]
[1750320068624,0.98201671,104790.0,104780.0,0.0615]
[1750320068847,0.97311613,104790.0,104780.0,0.0615]
[1750320070365,0.98201695,104790.0,104780.0,0.0615]
[1750320070597,0.97311613,104790.0,104780.0,0.0615]
[1750320070769,0.61179643,104790.0,104780.0,0.25237612]
[1750320070941,0.97311613,104790.0,104780.0,0.0710438]
[1750320071319,0.98201899,104790.0,104780.0,0.0615]
[1750320072485,0.98201899,104790.0,104780.0,0.0710438]
[1750320073852,0.62069929,104790.0,104780.0,0.27146354]
[1750320074133,0.98202311,104790.0,104780.0,0.27146354]
[1750320076652,0.98202649,104790.0,104780.0,0.27146354]
[1750320076841,0.98202649,104790.0,104780.0,0.26191992]
[1750320077076,0.9820306,104790.0,104780.0,0.27146363]
[1750320077978,0.6207109,104790.0,104780.0,0.27146363]
[1750320078184,0.9820306,104790.0,104780.0,0.28100707]
[1750320078811,0.79180021,104790.0,104780.0,0.30009348]
[1750320079018,0.42616134,104790.0,104780.0,0.30009348]
[1750320079196,0.77855946,104790.0,104780.0,0.30009348]
[1750320079536,0.97896025,104790.0,104780.0,0.30009348]
[1750320079745,0.37906947,104790.0,104780.0,0.30009348]
[1750320079976,0.76901584,104790.0,104780.0,0.30009348]
[1750320080185,0.77855837,104790.0,104780.0,0.30009348]
[1750320080403,0.40769614,104790.0,104780.0,0.30009348]
[1750320080639,0.77855846,104790.0,104780.0,0.30009348]
[1750320080846,0.42901584,104790.0,104780.0,0.30009348]
[1750320081294,0.04861154,104790.0,104780.0,0.30009348]
[1750320081516,0.03906947,104790.0,104780.0,0.95291318]
[1750320081723,0.03906947,104790.0,104780.0,1.20307494]
[1750320081931,0.389944,104800.0,104790.0,0.28228548]
[1750320082148,0.38040238,104800.0,104790.0,0.28228548]
[1750320082831,0.37086095,104800.0,104790.0,0.28228548]
[1750320083047,0.3613197,104800.0,104790.0,0.28228548]
[1750320083250,0.3804022,104800.0,104790.0,0.28228548]